[Event "Early-Titled-Tuesday-Blitz-April-02-2024"]
[Site "Chess.com"]
[Date "2024.04.02"]
[Round "7"]
[White "GM_Levan_Pantsulaia"]
[Black "Jospem"]
[Result "1-0"]
[WhiteElo "2896"]
[BlackElo "3044"]
[TimeControl "180+1"]
[EndTime "9:17:48 PDT"]
[Termination "GM_Levan_Pantsulaia won by resignation"]

1. Nf3 {[%clk 0:03:00.9]} 1... c5 {[%clk 0:02:59.9]} 2. c4 {[%clk 0:03:01]} 2...
Nc6 {[%clk 0:03:00.3]} 3. Nc3 {[%clk 0:03:01]} 3... g6 {[%clk 0:03:00.8]} 4. e3
{[%clk 0:03:00.5]} 4... Bg7 {[%clk 0:03:01.5]} 5. d4 {[%clk 0:03:00.6]} 5... d6
{[%clk 0:03:02.4]} 6. d5 {[%clk 0:02:59.7]} 6... Na5 {[%clk 0:03:02.3]} 7. Bd2
{[%clk 0:02:59.5]} 7... Nf6 {[%clk 0:03:01.3]} 8. a3 {[%clk 0:02:59.3]} 8... b6
{[%clk 0:03:01.5]} 9. b4 {[%clk 0:02:59.1]} 9... Nb7 {[%clk 0:03:02.2]} 10. Bd3
{[%clk 0:02:57.3]} 10... O-O {[%clk 0:03:02.5]} 11. O-O {[%clk 0:02:56.3]} 11...
Bg4 {[%clk 0:03:02.5]} 12. h3 {[%clk 0:02:40.6]} 12... Bxf3 {[%clk 0:03:02.2]}
13. Qxf3 {[%clk 0:02:41.5]} 13... cxb4 {[%clk 0:02:56.1]} 14. axb4 {[%clk
0:02:40.9]} 14... a5 {[%clk 0:02:57]} 15. Na2 {[%clk 0:02:30.2]} 15... Nd7
{[%clk 0:02:55.4]} 16. Rab1 {[%clk 0:02:29.7]} 16... Qc7 {[%clk 0:02:53.5]} 17.
Qe2 {[%clk 0:02:27.8]} 17... Rfc8 {[%clk 0:02:53.6]} 18. Rfc1 {[%clk 0:02:21.8]}
18... Ne5 {[%clk 0:02:45.6]} 19. Be1 {[%clk 0:02:14]} 19... Qd7 {[%clk
0:02:25.3]} 20. Qd1 {[%clk 0:02:11.7]} 20... Rc7 {[%clk 0:02:09.1]} 21. Bf1
{[%clk 0:02:11]} 21... Qc8 {[%clk 0:02:09.1]} 22. Nc3 {[%clk 0:01:44.4]} 22...
Qd8 {[%clk 0:02:02]} 23. Nb5 {[%clk 0:01:43.7]} 23... Rcc8 {[%clk 0:02:02.1]}
24. Nd4 {[%clk 0:01:43.3]} 24... axb4 {[%clk 0:01:57.9]} 25. f4 {[%clk
0:01:42.3]} 25... Nd7 {[%clk 0:01:58.2]} 26. Nc6 {[%clk 0:01:42.4]} 26... Qe8
{[%clk 0:01:58.3]} 27. Rxb4 {[%clk 0:01:38.4]} 27... Na5 {[%clk 0:01:55.9]} 28.
Qf3 {[%clk 0:01:23.3]} 28... e5 {[%clk 0:01:03.6]} 29. dxe6 {[%clk 0:01:16]}
29... fxe6 {[%clk 0:01:04.5]} 30. Nd4 {[%clk 0:01:09.7]} 30... Qe7 {[%clk
0:01:03.2]} 31. Rbb1 {[%clk 0:01:03.7]} 31... Kh8 {[%clk 0:01:03.1]} 32. Nb5
{[%clk 0:00:58.6]} 32... Nc5 {[%clk 0:01:01.4]} 33. Rd1 {[%clk 0:00:58.6]} 33...
Nab7 {[%clk 0:01:00]} 34. Bb4 {[%clk 0:00:53.7]} 34... Rab8 {[%clk 0:00:51]} 35.
Na7 {[%clk 0:00:51.9]} 35... Qc7 {[%clk 0:00:44.4]} 36. Nxc8 {[%clk 0:00:51.9]}
36... Rxc8 {[%clk 0:00:45.3]} 37. Be1 {[%clk 0:00:51.3]} 37... Rf8 {[%clk
0:00:45.2]} 38. Qg4 {[%clk 0:00:44.5]} 38... Nd8 {[%clk 0:00:44.8]} 39. Bb4
{[%clk 0:00:40.6]} 39... Ne4 {[%clk 0:00:43.1]} 40. Bd3 {[%clk 0:00:38.8]} 40...
Nc5 {[%clk 0:00:39.2]} 41. Bc2 {[%clk 0:00:37.7]} 41... Kg8 {[%clk 0:00:32.6]}
42. h4 {[%clk 0:00:38]} 42... Qe7 {[%clk 0:00:21.1]} 43. h5 {[%clk 0:00:38]}
43... gxh5 {[%clk 0:00:21.9]} 44. Qxh5 {[%clk 0:00:38.2]} 44... h6 {[%clk
0:00:22.7]} 45. Qg6 {[%clk 0:00:36.8]} 45... Rf6 {[%clk 0:00:22.6]} 46. Qh7+
{[%clk 0:00:36.1]} 46... Kf8 {[%clk 0:00:22.9]} 47. Bc3 {[%clk 0:00:36.3]} 47...
e5 {[%clk 0:00:19.7]} 48. fxe5 {[%clk 0:00:35.1]} 48... dxe5 {[%clk 0:00:20.6]}
49. Rf1 {[%clk 0:00:34.4]} 49... Nd7 {[%clk 0:00:21.2]} 50. Bb4 {[%clk
0:00:31.4]} 50... Nc5 {[%clk 0:00:21.7]} 51. Rxf6+ {[%clk 0:00:31.2]} 51... Bxf6
{[%clk 0:00:22.6]} 52. Qxh6+ {[%clk 0:00:30.5]} 52... Ke8 {[%clk 0:00:21.9]} 53.
Rf1 {[%clk 0:00:30.1]} 53... Bg7 {[%clk 0:00:21]} 54. Qxb6 {[%clk 0:00:28.7]}
54... Nde6 {[%clk 0:00:21.7]} 55. Bg6+ {[%clk 0:00:27.4]} 55... Kd7 {[%clk
0:00:21.3]} 56. Rd1+ {[%clk 0:00:27.3]} 56... Kc8 {[%clk 0:00:21.3]} 57. Bxc5
{[%clk 0:00:23.3]} 57... Nxc5 {[%clk 0:00:22.2]} 58. Bf5+ {[%clk 0:00:23.3]} 1-0

[Event "Early-Titled-Tuesday-Blitz-April-02-2024"]
[Site "Chess.com"]
[Date "2024.04.02"]
[Round "7"]
[White "Dewarfd"]
[Black "zeitnotakrobat"]
[Result "1-0"]
[WhiteElo "2119"]
[BlackElo "2186"]
[TimeControl "180+1"]
[EndTime "9:17:48 PDT"]
[Termination "Dewarfd won on time"]

1. c4 {[%clk 0:03:00.9]} 1... f5 {[%clk 0:02:59.3]} 2. e4 {[%clk 0:02:58.6]}
2... fxe4 {[%clk 0:02:57]} 3. d3 {[%clk 0:02:58.6]} 3... Nf6 {[%clk 0:02:55.6]}
4. dxe4 {[%clk 0:02:58.7]} 4... e5 {[%clk 0:02:55.6]} 5. Nc3 {[%clk 0:02:57.6]}
5... Bb4 {[%clk 0:02:53.9]} 6. Bd2 {[%clk 0:02:55.8]} 6... O-O {[%clk
0:02:52.1]} 7. Bd3 {[%clk 0:02:51]} 7... d6 {[%clk 0:02:51]} 8. Nge2 {[%clk
0:02:46.8]} 8... Nc6 {[%clk 0:02:47.4]} 9. a3 {[%clk 0:02:45.5]} 9... Bxc3
{[%clk 0:02:35.6]} 10. Bxc3 {[%clk 0:02:45.5]} 10... Be6 {[%clk 0:02:33.8]} 11.
O-O {[%clk 0:02:44.1]} 11... Qd7 {[%clk 0:02:30.8]} 12. b4 {[%clk 0:02:36.9]}
12... Ne7 {[%clk 0:02:30]} 13. c5 {[%clk 0:02:32.4]} 13... Ng6 {[%clk
0:02:15.8]} 14. cxd6 {[%clk 0:02:24.7]} 14... Qxd6 {[%clk 0:02:11.3]} 15. Bc2
{[%clk 0:02:17.1]} 15... Qc6 {[%clk 0:02:05.6]} 16. Bb3 {[%clk 0:02:11.3]} 16...
Rad8 {[%clk 0:01:53.8]} 17. Bxe6+ {[%clk 0:02:07.4]} 17... Qxe6 {[%clk
0:01:53.2]} 18. Qc2 {[%clk 0:02:06.4]} 18... c6 {[%clk 0:01:47.6]} 19. Rad1
{[%clk 0:02:02.3]} 19... Rxd1 {[%clk 0:01:27.7]} 20. Rxd1 {[%clk 0:02:01.7]}
20... Ng4 {[%clk 0:01:27.5]} 21. Be1 {[%clk 0:01:48.7]} 21... Qf6 {[%clk
0:01:19.4]} 22. Ng3 {[%clk 0:01:38.5]} 22... Kh8 {[%clk 0:01:17.5]} 23. h3
{[%clk 0:01:34.7]} 23... Nh6 {[%clk 0:01:16]} 24. Rd7 {[%clk 0:01:32.1]} 24...
Rd8 {[%clk 0:00:55.4]} 25. Qd1 {[%clk 0:01:25.4]} 25... Rf8 {[%clk 0:00:52.5]}
26. Rxb7 {[%clk 0:01:23]} 26... Nf4 {[%clk 0:00:52.1]} 27. Rxa7 {[%clk
0:01:16.3]} 27... Nf7 {[%clk 0:00:49.3]} 28. Qd7 {[%clk 0:00:59.9]} 28... h6
{[%clk 0:00:34.7]} 29. Qe7 {[%clk 0:00:58.7]} 29... Qxe7 {[%clk 0:00:24.9]} 30.
Rxe7 {[%clk 0:00:57.7]} 30... Ng5 {[%clk 0:00:24.8]} 31. a4 {[%clk 0:00:47.6]}
31... Rd8 {[%clk 0:00:24.3]} 32. Bc3 {[%clk 0:00:32.5]} 32... Rd1+ {[%clk
0:00:16.9]} 33. Kh2 {[%clk 0:00:32]} 33... Kg8 {[%clk 0:00:11.4]} 34. Bxe5
{[%clk 0:00:28.3]} 34... Nd3 {[%clk 0:00:10.1]} 35. Rxg7+ {[%clk 0:00:20.6]}
35... Kf8 {[%clk 0:00:10.4]} 36. Rd7 {[%clk 0:00:17.9]} 36... Nxf2 {[%clk
0:00:08.8]} 37. Rxd1 {[%clk 0:00:16.8]} 37... Nxd1 {[%clk 0:00:09]} 38. b5
{[%clk 0:00:13.8]} 38... cxb5 {[%clk 0:00:05.1]} 39. axb5 {[%clk 0:00:14.7]}
39... Nf7 {[%clk 0:00:05.2]} 40. Bf4 {[%clk 0:00:14.3]} 40... Nc3 {[%clk
0:00:04.4]} 41. b6 {[%clk 0:00:14.3]} 41... Nd8 {[%clk 0:00:04.2]} 42. Bxh6+
{[%clk 0:00:12.2]} 42... Kf7 {[%clk 0:00:04.4]} 43. e5 {[%clk 0:00:12.1]} 43...
Ke6 {[%clk 0:00:03.1]} 44. Be3 {[%clk 0:00:11.9]} 44... Nb7 {[%clk 0:00:02.9]}
45. Bd4 {[%clk 0:00:10.7]} 45... Nb5 {[%clk 0:00:02.6]} 46. Bb2 {[%clk
0:00:10.7]} 1-0

[Event "Early-Titled-Tuesday-Blitz-April-02-2024"]
[Site "Chess.com"]
[Date "2024.04.02"]
[Round "7"]
[White "krstulov_alex"]
[Black "Yaacovn"]
[Result "0-1"]
[WhiteElo "2683"]
[BlackElo "2857"]
[TimeControl "180+1"]
[EndTime "9:17:51 PDT"]
[Termination "Yaacovn won by resignation"]

1. d4 {[%clk 0:03:00.9]} 1... Nf6 {[%clk 0:02:59.9]} 2. c4 {[%clk 0:03:00.2]}
2... e5 {[%clk 0:02:59.5]} 3. dxe5 {[%clk 0:02:57.7]} 3... Ne4 {[%clk
0:02:59.5]} 4. a3 {[%clk 0:02:01.4]} 4... d6 {[%clk 0:02:56.5]} 5. Qc2 {[%clk
0:01:54.5]} 5... d5 {[%clk 0:02:56.3]} 6. e3 {[%clk 0:01:43.1]} 6... Bf5 {[%clk
0:02:54.6]} 7. Nc3 {[%clk 0:01:08.9]} 7... Ng3 {[%clk 0:02:50.3]} 8. e4 {[%clk
0:01:09.4]} 8... Nxe4 {[%clk 0:02:48.6]} 9. Bd3 {[%clk 0:01:09.7]} 9... Bg6
{[%clk 0:02:44.5]} 10. Nxe4 {[%clk 0:00:57.6]} 10... dxe4 {[%clk 0:02:44.4]} 11.
Bxe4 {[%clk 0:00:58.5]} 11... Nc6 {[%clk 0:02:44.6]} 12. Nf3 {[%clk 0:00:58]}
12... Qd7 {[%clk 0:02:36.1]} 13. O-O {[%clk 0:00:41.8]} 13... O-O-O {[%clk
0:02:36.2]} 14. Bg5 {[%clk 0:00:41.6]} 14... Be7 {[%clk 0:02:33.2]} 15. Bxc6
{[%clk 0:00:40.1]} 15... Qxc6 {[%clk 0:02:30.2]} 16. Qc1 {[%clk 0:00:30.4]}
16... Bxg5 {[%clk 0:02:23.7]} 17. Qxg5 {[%clk 0:00:31.3]} 17... Be4 {[%clk
0:02:19.8]} 18. Nd2 {[%clk 0:00:18.5]} 18... Bxg2 {[%clk 0:02:14.6]} 19. Rfd1
{[%clk 0:00:16.4]} 19... Bh3 {[%clk 0:02:12.4]} 20. Qg3 {[%clk 0:00:15.6]} 20...
Bf5 {[%clk 0:02:08]} 21. Nf3 {[%clk 0:00:16]} 21... Bg6 {[%clk 0:01:53.1]} 22.
Nd4 {[%clk 0:00:12.5]} 22... Qe4 {[%clk 0:01:52.9]} 23. Nb5 {[%clk 0:00:12.7]}
23... a6 {[%clk 0:01:52.6]} 24. Re1 {[%clk 0:00:06.2]} 24... Qf5 {[%clk
0:01:47.1]} 25. Nc3 {[%clk 0:00:05]} 25... Rd3 {[%clk 0:01:46.9]} 26. Qg2 {[%clk
0:00:05.6]} 26... Re8 {[%clk 0:01:41.6]} 27. Nd5 {[%clk 0:00:04.6]} 27... c6
{[%clk 0:01:37.4]} 28. Nb6+ {[%clk 0:00:04.1]} 28... Kc7 {[%clk 0:01:37.5]} 29.
c5 {[%clk 0:00:04.7]} 29... Qf3 {[%clk 0:01:32]} 30. Qxf3 {[%clk 0:00:04.7]}
30... Rxf3 {[%clk 0:01:32.9]} 31. Nc4 {[%clk 0:00:04.8]} 31... Rd3 {[%clk
0:01:30.7]} 32. Nd6 {[%clk 0:00:04.9]} 32... Re7 {[%clk 0:01:28.8]} 33. f4
{[%clk 0:00:04.7]} 33... Bh5 {[%clk 0:01:26]} 34. f5 {[%clk 0:00:04.4]} 34...
Rd5 {[%clk 0:01:25]} 35. f6 {[%clk 0:00:05]} 35... gxf6 {[%clk 0:01:19.3]} 36.
exf6 {[%clk 0:00:05.9]} 36... Rxe1+ {[%clk 0:01:17.2]} 37. Rxe1 {[%clk
0:00:06.8]} 37... Rxc5 {[%clk 0:01:17.6]} 38. Nxf7 {[%clk 0:00:04.7]} 38... Rd5
{[%clk 0:01:12.3]} 39. Re7+ {[%clk 0:00:05.3]} 39... Rd7 {[%clk 0:01:12.6]} 40.
Rxd7+ {[%clk 0:00:04.7]} 40... Kxd7 {[%clk 0:01:12]} 41. Ne5+ {[%clk 0:00:05.3]}
41... Ke6 {[%clk 0:01:11.7]} 42. Nc4 {[%clk 0:00:06.2]} 42... Be8 {[%clk
0:01:08.9]} 43. Na5 {[%clk 0:00:06.4]} 43... b6 {[%clk 0:01:08.8]} 44. f7 {[%clk
0:00:06.2]} 44... Kxf7 {[%clk 0:01:07.9]} 45. Nc4 {[%clk 0:00:07.1]} 45... b5
{[%clk 0:01:07.4]} 46. Nd6+ {[%clk 0:00:08]} 46... Ke7 {[%clk 0:01:07.5]} 47.
Nf5+ {[%clk 0:00:08.5]} 47... Kf6 {[%clk 0:01:07.5]} 48. Nd6 {[%clk 0:00:08.9]}
48... Bg6 {[%clk 0:01:05.6]} 49. b4 {[%clk 0:00:07.4]} 49... Ke5 {[%clk
0:01:05.6]} 50. Nb7 {[%clk 0:00:08]} 50... Kd5 {[%clk 0:01:03.2]} 51. Nc5 {[%clk
0:00:08]} 51... a5 {[%clk 0:01:03.2]} 52. Kf2 {[%clk 0:00:08]} 52... axb4 {[%clk
0:01:03.3]} 53. axb4 {[%clk 0:00:08.9]} 53... Kc4 {[%clk 0:01:03.6]} 54. Na6
{[%clk 0:00:09.8]} 54... Bf5 {[%clk 0:01:03.5]} 55. Ke3 {[%clk 0:00:09.7]} 55...
Bc8 {[%clk 0:01:03.4]} 56. Nb8 {[%clk 0:00:10.2]} 56... Bb7 {[%clk 0:01:03.2]}
57. Nd7 {[%clk 0:00:10.5]} 57... Kxb4 {[%clk 0:01:03.3]} 58. Kd4 {[%clk
0:00:11.4]} 58... Bc8 {[%clk 0:01:03]} 59. Nf6 {[%clk 0:00:12.2]} 59... c5+
{[%clk 0:01:02.8]} 60. Ke5 {[%clk 0:00:12.3]} 60... Kc4 {[%clk 0:01:01.8]} 61.
Ne4 {[%clk 0:00:10.2]} 61... Ba6 {[%clk 0:00:58.6]} 62. Kf6 {[%clk 0:00:09.5]}
62... Kd4 {[%clk 0:00:58.4]} 63. Nd2 {[%clk 0:00:09.1]} 63... c4 {[%clk
0:00:58.2]} 64. h4 {[%clk 0:00:08.2]} 64... c3 {[%clk 0:00:57.8]} 65. Nb3+
{[%clk 0:00:08.9]} 65... Kc4 {[%clk 0:00:57.6]} 66. Na5+ {[%clk 0:00:09.3]}
66... Kb4 {[%clk 0:00:56]} 67. Nc6+ {[%clk 0:00:09.6]} 67... Kc5 {[%clk
0:00:56.3]} 68. Ne5 {[%clk 0:00:08.1]} 68... b4 {[%clk 0:00:55.2]} 69. Nd3+
{[%clk 0:00:08.8]} 69... Bxd3 {[%clk 0:00:55]} 0-1

[Event "Early-Titled-Tuesday-Blitz-April-02-2024"]
[Site "Chess.com"]
[Date "2024.04.02"]
[Round "7"]
[White "Polish_fighter3000"]
[Black "Alexander_Donchenko"]
[Result "1-0"]
[WhiteElo "3145"]
[BlackElo "2908"]
[TimeControl "180+1"]
[EndTime "9:17:52 PDT"]
[Termination "Polish_fighter3000 won on time"]

1. e4 {[%clk 0:03:00.9]} 1... c5 {[%clk 0:02:59.8]} 2. Nf3 {[%clk 0:03:01]} 2...
d6 {[%clk 0:03:00.4]} 3. d4 {[%clk 0:03:01.3]} 3... cxd4 {[%clk 0:03:01.3]} 4.
Nxd4 {[%clk 0:03:01.7]} 4... Nf6 {[%clk 0:03:01.9]} 5. Nc3 {[%clk 0:03:02.1]}
5... a6 {[%clk 0:03:02.6]} 6. Bg5 {[%clk 0:03:01.8]} 6... Nbd7 {[%clk
0:03:02.4]} 7. Bc4 {[%clk 0:03:00.7]} 7... Qb6 {[%clk 0:02:59.9]} 8. Bb3 {[%clk
0:03:00.7]} 8... e6 {[%clk 0:02:58.9]} 9. Qd2 {[%clk 0:03:00.9]} 9... Be7 {[%clk
0:02:58.3]} 10. O-O-O {[%clk 0:03:01.3]} 10... Nc5 {[%clk 0:02:58.4]} 11. Qe2
{[%clk 0:03:01.1]} 11... Qc7 {[%clk 0:02:55.1]} 12. f4 {[%clk 0:03:00.2]} 12...
h6 {[%clk 0:02:44.2]} 13. Bh4 {[%clk 0:02:59.9]} 13... O-O {[%clk 0:02:39.8]}
14. e5 {[%clk 0:02:54.1]} 14... dxe5 {[%clk 0:02:40.7]} 15. fxe5 {[%clk
0:02:54.4]} 15... Nh7 {[%clk 0:02:40.4]} 16. Bxe7 {[%clk 0:02:53.6]} 16... Qxe7
{[%clk 0:02:41.3]} 17. Ne4 {[%clk 0:02:51.8]} 17... Nxe4 {[%clk 0:02:35.7]} 18.
Qxe4 {[%clk 0:02:52.7]} 18... Ng5 {[%clk 0:02:32]} 19. Qd3 {[%clk 0:02:45.4]}
19... Bd7 {[%clk 0:02:28.8]} 20. h4 {[%clk 0:02:44.8]} 20... Nh7 {[%clk
0:02:28.7]} 21. c3 {[%clk 0:02:41]} 21... Rfd8 {[%clk 0:02:18.6]} 22. Bc2 {[%clk
0:02:40.8]} 22... Nf8 {[%clk 0:02:18.9]} 23. Qf3 {[%clk 0:02:41.3]} 23... Be8
{[%clk 0:01:53.1]} 24. g4 {[%clk 0:02:40.6]} 24... g6 {[%clk 0:01:21.1]} 25. Be4
{[%clk 0:02:23.9]} 25... Rab8 {[%clk 0:01:19.3]} 26. Qf4 {[%clk 0:02:24.3]}
26... Kg7 {[%clk 0:01:17.7]} 27. g5 {[%clk 0:02:18.9]} 27... h5 {[%clk
0:01:16.5]} 28. Qf6+ {[%clk 0:02:15.3]} 28... Qxf6 {[%clk 0:01:16.8]} 29. exf6+
{[%clk 0:02:15.5]} 29... Kg8 {[%clk 0:01:17.6]} 30. b4 {[%clk 0:02:06.5]} 30...
Ba4 {[%clk 0:01:12.5]} 31. Bc2 {[%clk 0:01:32]} 31... Bxc2 {[%clk 0:01:12.2]}
32. Kxc2 {[%clk 0:01:32.9]} 32... Nd7 {[%clk 0:01:12.4]} 33. Nf3 {[%clk
0:01:28.4]} 33... Kf8 {[%clk 0:01:07.4]} 34. Rd6 {[%clk 0:01:25.6]} 34... Ke8
{[%clk 0:00:53.1]} 35. Rhd1 {[%clk 0:01:24.9]} 35... Rbc8 {[%clk 0:00:52.1]} 36.
Kb3 {[%clk 0:01:10]} 36... Nb8 {[%clk 0:00:30.2]} 37. Ne5 {[%clk 0:00:50.2]}
37... Rxd6 {[%clk 0:00:19.8]} 38. Rxd6 {[%clk 0:00:51.1]} 38... Rc7 {[%clk
0:00:16.3]} 39. a4 {[%clk 0:00:48.7]} 39... Nd7 {[%clk 0:00:16.5]} 40. Nxg6
{[%clk 0:00:35.7]} 40... fxg6 {[%clk 0:00:12.8]} 41. Rxe6+ {[%clk 0:00:36.1]}
41... Kf8 {[%clk 0:00:08.7]} 42. Re7 {[%clk 0:00:35.3]} 42... b5 {[%clk
0:00:03.4]} 43. a5 {[%clk 0:00:28.9]} 43... Rb7 {[%clk 0:00:02.6]} 44. Kc2
{[%clk 0:00:28.5]} 44... Rc7 {[%clk 0:00:02.4]} 45. Kd3 {[%clk 0:00:28.9]} 45...
Rb7 {[%clk 0:00:01.6]} 46. c4 {[%clk 0:00:10.4]} 46... bxc4+ {[%clk 0:00:02.1]}
47. Kxc4 {[%clk 0:00:11.3]} 47... Rc7+ {[%clk 0:00:02.7]} 48. Kd5 {[%clk
0:00:11]} 1-0

[Event "Early-Titled-Tuesday-Blitz-April-02-2024"]
[Site "Chess.com"]
[Date "2024.04.02"]
[Round "7"]
[White "eagleclaw07"]
[Black "bilelou"]
[Result "1-0"]
[WhiteElo "2847"]
[BlackElo "2660"]
[TimeControl "180+1"]
[EndTime "9:17:56 PDT"]
[Termination "eagleclaw07 won on time"]

1. d4 {[%clk 0:03:00.9]} 1... Nf6 {[%clk 0:02:58.9]} 2. c4 {[%clk 0:03:01.8]}
2... e6 {[%clk 0:02:58.1]} 3. Nc3 {[%clk 0:03:02.5]} 3... c5 {[%clk 0:02:55.9]}
4. d5 {[%clk 0:03:02.8]} 4... exd5 {[%clk 0:02:56.8]} 5. cxd5 {[%clk 0:03:03.3]}
5... d6 {[%clk 0:02:57.1]} 6. Nf3 {[%clk 0:03:04]} 6... g6 {[%clk 0:02:57.1]} 7.
Bf4 {[%clk 0:03:04.8]} 7... a6 {[%clk 0:02:56.2]} 8. a4 {[%clk 0:03:05.5]} 8...
Bg7 {[%clk 0:02:56]} 9. h3 {[%clk 0:03:06.1]} 9... O-O {[%clk 0:02:56.4]} 10. e3
{[%clk 0:03:06.8]} 10... Re8 {[%clk 0:02:56.1]} 11. Be2 {[%clk 0:03:07.1]} 11...
Ne4 {[%clk 0:02:56]} 12. Nxe4 {[%clk 0:03:07.3]} 12... Rxe4 {[%clk 0:02:56.6]}
13. Nd2 {[%clk 0:03:08]} 13... Rb4 {[%clk 0:02:34.2]} 14. Nc4 {[%clk 0:03:07.8]}
14... Rxc4 {[%clk 0:02:15.1]} 15. Bxc4 {[%clk 0:03:07.4]} 15... Bxb2 {[%clk
0:02:15.6]} 16. Rb1 {[%clk 0:02:59.6]} 16... Bc3+ {[%clk 0:02:12.4]} 17. Kf1
{[%clk 0:03:00.3]} 17... Qe7 {[%clk 0:02:10.4]} 18. Rb6 {[%clk 0:02:36]} 18...
Be5 {[%clk 0:02:07.5]} 19. Bxe5 {[%clk 0:02:27.4]} 19... Qxe5 {[%clk 0:02:08.4]}
20. Rb1 {[%clk 0:02:21]} 20... Nd7 {[%clk 0:02:06.9]} 21. Qf3 {[%clk 0:02:09.1]}
21... Qe7 {[%clk 0:01:51.6]} 22. Qf4 {[%clk 0:02:08.2]} 22... Ne5 {[%clk
0:01:51.6]} 23. h4 {[%clk 0:02:04.5]} 23... Bf5 {[%clk 0:01:47.6]} 24. Rb6
{[%clk 0:01:53.6]} 24... Qc7 {[%clk 0:01:23.7]} 25. a5 {[%clk 0:01:52.3]} 25...
Re8 {[%clk 0:01:16.5]} 26. h5 {[%clk 0:01:48.4]} 26... Qe7 {[%clk 0:01:04]} 27.
Be2 {[%clk 0:01:36.1]} 27... Bc8 {[%clk 0:01:01.2]} 28. h6 {[%clk 0:01:06.8]}
28... f5 {[%clk 0:01:00.6]} 29. g3 {[%clk 0:00:57.8]} 29... Nf7 {[%clk
0:00:58.2]} 30. Kg2 {[%clk 0:00:44.4]} 30... Qf6 {[%clk 0:00:57.3]} 31. Qh4
{[%clk 0:00:25.8]} 31... g5 {[%clk 0:00:56]} 32. Qa4 {[%clk 0:00:24.8]} 32...
Re5 {[%clk 0:00:48.3]} 33. Bxa6 {[%clk 0:00:20]} 33... bxa6 {[%clk 0:00:27.8]}
34. Rb8 {[%clk 0:00:20.9]} 34... Qd8 {[%clk 0:00:27.4]} 35. Rhb1 {[%clk
0:00:17.8]} 35... Re8 {[%clk 0:00:23.5]} 36. R1b6 {[%clk 0:00:15.2]} 36... Qe7
{[%clk 0:00:20.5]} 37. Qc6 {[%clk 0:00:08.4]} 37... Bd7 {[%clk 0:00:20.3]} 38.
Qb7 {[%clk 0:00:05.5]} 38... g4 {[%clk 0:00:17.9]} 39. Rxe8+ {[%clk 0:00:05.1]}
39... Qxe8 {[%clk 0:00:18.8]} 40. Rxa6 {[%clk 0:00:05.6]} 40... Qe4+ {[%clk
0:00:17.3]} 41. Kg1 {[%clk 0:00:05.4]} 41... Ne5 {[%clk 0:00:11.3]} 42. Qb8+
{[%clk 0:00:03.4]} 42... Kf7 {[%clk 0:00:09.8]} 43. Rxd6 {[%clk 0:00:03.1]}
43... Qb1+ {[%clk 0:00:05.3]} 44. Qxb1 {[%clk 0:00:02.5]} 1-0

[Event "Early-Titled-Tuesday-Blitz-April-02-2024"]
[Site "Chess.com"]
[Date "2024.04.02"]
[Round "7"]
[White "Incognito_Knight"]
[Black "Bauman_Guy"]
[Result "0-1"]
[WhiteElo "2735"]
[BlackElo "2908"]
[TimeControl "180+1"]
[EndTime "9:17:59 PDT"]
[Termination "Bauman_Guy won on time"]

1. e4 {[%clk 0:03:00.9]} 1... c6 {[%clk 0:02:59.7]} 2. d4 {[%clk 0:03:00.4]}
2... d5 {[%clk 0:03:00.3]} 3. exd5 {[%clk 0:03:01.3]} 3... cxd5 {[%clk
0:03:00.9]} 4. Bd3 {[%clk 0:03:01.4]} 4... Nf6 {[%clk 0:03:01.5]} 5. h3 {[%clk
0:03:01.3]} 5... g6 {[%clk 0:03:02]} 6. Nf3 {[%clk 0:02:59.3]} 6... Bg7 {[%clk
0:03:02.6]} 7. O-O {[%clk 0:02:58.8]} 7... Nc6 {[%clk 0:03:03.2]} 8. c3 {[%clk
0:02:57.9]} 8... O-O {[%clk 0:03:03.8]} 9. Qc2 {[%clk 0:02:49.2]} 9... a6 {[%clk
0:03:02.3]} 10. a4 {[%clk 0:02:47.9]} 10... Bd7 {[%clk 0:03:00.1]} 11. Bf4
{[%clk 0:02:45.8]} 11... Rc8 {[%clk 0:03:00.3]} 12. Qe2 {[%clk 0:02:36.9]} 12...
Bf5 {[%clk 0:03:00]} 13. Nbd2 {[%clk 0:02:32.7]} 13... Bxd3 {[%clk 0:02:59.4]}
14. Qxd3 {[%clk 0:02:33.6]} 14... e6 {[%clk 0:02:59.8]} 15. b4 {[%clk
0:02:28.6]} 15... Nd7 {[%clk 0:02:56.2]} 16. a5 {[%clk 0:02:26.2]} 16... Na7
{[%clk 0:02:51.7]} 17. Nb3 {[%clk 0:02:24]} 17... Nb5 {[%clk 0:02:51.9]} 18. Nc5
{[%clk 0:02:22.8]} 18... Nxc5 {[%clk 0:02:51.1]} 19. bxc5 {[%clk 0:02:22.9]}
19... Re8 {[%clk 0:02:48.6]} 20. Rfe1 {[%clk 0:02:19.8]} 20... f6 {[%clk
0:02:34.7]} 21. c4 {[%clk 0:02:01.1]} 21... dxc4 {[%clk 0:02:34]} 22. Qxc4
{[%clk 0:02:02]} 22... Qd5 {[%clk 0:02:34.4]} 23. Qxd5 {[%clk 0:01:19.4]} 23...
exd5 {[%clk 0:02:35.3]} 24. Kf1 {[%clk 0:01:19.4]} 24... Re4 {[%clk 0:02:30.2]}
25. Be3 {[%clk 0:01:03.9]} 25... f5 {[%clk 0:02:27.3]} 26. Nd2 {[%clk
0:01:01.5]} 26... Re6 {[%clk 0:02:26.5]} 27. Nb3 {[%clk 0:00:58.3]} 27... Rce8
{[%clk 0:02:25.9]} 28. g3 {[%clk 0:00:53.6]} 28... Re4 {[%clk 0:02:18.8]} 29.
Rad1 {[%clk 0:00:38.4]} 29... Na7 {[%clk 0:01:56.9]} 30. Rb1 {[%clk 0:00:33.3]}
30... Nc6 {[%clk 0:01:51.7]} 31. Red1 {[%clk 0:00:26.3]} 31... Bf6 {[%clk
0:01:43.8]} 32. h4 {[%clk 0:00:24.7]} 32... Bd8 {[%clk 0:01:36.2]} 33. Nd2
{[%clk 0:00:18.3]} 33... R4e7 {[%clk 0:01:36.2]} 34. Bg5 {[%clk 0:00:18.7]}
34... Rd7 {[%clk 0:01:35.5]} 35. Bxd8 {[%clk 0:00:18.9]} 35... Rexd8 {[%clk
0:01:36.1]} 36. Nb3 {[%clk 0:00:19.1]} 36... Re8 {[%clk 0:01:36]} 37. Re1 {[%clk
0:00:16.7]} 37... Re4 {[%clk 0:01:32.4]} 38. f3 {[%clk 0:00:14]} 38... Ree7
{[%clk 0:01:32.3]} 39. Rxe7 {[%clk 0:00:12.8]} 39... Rxe7 {[%clk 0:01:33.2]} 40.
Re1 {[%clk 0:00:12.9]} 40... Kf7 {[%clk 0:01:33.5]} 41. Rxe7+ {[%clk 0:00:12.6]}
41... Kxe7 {[%clk 0:01:34.4]} 42. Ke2 {[%clk 0:00:12.8]} 42... f4 {[%clk
0:01:20.8]} 43. g4 {[%clk 0:00:09.7]} 43... h5 {[%clk 0:01:21.2]} 44. Kd3 {[%clk
0:00:03.9]} 44... Kf6 {[%clk 0:01:19.6]} 45. Ke2 {[%clk 0:00:04.2]} 45... g5
{[%clk 0:01:09.8]} 46. hxg5+ {[%clk 0:00:03.8]} 46... Kxg5 {[%clk 0:01:10.7]}
47. gxh5 {[%clk 0:00:04.7]} 47... Kxh5 {[%clk 0:01:11]} 48. Kf2 {[%clk 0:00:05]}
48... Kh4 {[%clk 0:01:11.2]} 49. Kg2 {[%clk 0:00:05.7]} 49... Ne7 {[%clk
0:01:08]} 50. Nc1 {[%clk 0:00:04.1]} 50... Nf5 {[%clk 0:01:08.5]} 51. Nb3 {[%clk
0:00:03.8]} 51... Ne3+ {[%clk 0:01:07]} 52. Kf2 {[%clk 0:00:04.3]} 52... Nf5
{[%clk 0:01:00.4]} 53. Kg2 {[%clk 0:00:02.5]} 53... Ne3+ {[%clk 0:00:54.5]} 54.
Kf2 {[%clk 0:00:03]} 54... Kh3 {[%clk 0:00:55.2]} 55. Ke2 {[%clk 0:00:03.6]}
55... Kg3 {[%clk 0:00:53.4]} 56. Nc1 {[%clk 0:00:03.8]} 56... Nf5 {[%clk
0:00:52.4]} 57. Nb3 {[%clk 0:00:03.7]} 57... Kg2 {[%clk 0:00:52.8]} 58. c6
{[%clk 0:00:02.2]} 58... bxc6 {[%clk 0:00:53.7]} 59. Nc5 {[%clk 0:00:02.6]}
59... Nxd4+ {[%clk 0:00:51.8]} 60. Kd3 {[%clk 0:00:03.2]} 60... Nb5 {[%clk
0:00:52.4]} 61. Nxa6 {[%clk 0:00:03.7]} 61... Kxf3 {[%clk 0:00:53]} 62. Nb4
{[%clk 0:00:04.2]} 62... Kg2 {[%clk 0:00:52.4]} 63. Nxc6 {[%clk 0:00:04.4]}
63... f3 {[%clk 0:00:52.3]} 64. Ne5 {[%clk 0:00:02.4]} 64... f2 {[%clk
0:00:52.3]} 65. Ng4 {[%clk 0:00:03.1]} 65... f1=Q+ {[%clk 0:00:52.6]} 0-1